fUSD/lending_fUSD_20250517
["ID","MTS","AMOUNT","RATE_DAILY","PERIOD"]
[361307977,1747443048101,-400.0,0.00016438,2]
[361307978,1747443048110,-403.28731182,0.00016438,2]
[361307979,1747443048119,-400.0,0.00016438,2]
[361307980,1747443048129,-167.50961743,0.00016438,2]
[361307981,1747443048138,-400.0,0.00016438,2]
[361307982,1747443048149,-400.0,0.00016438,2]
[361307983,1747443048159,-400.0,0.00016438,2]
[361307984,1747443048168,-728.38,0.00016438,2]
[361307985,1747443048177,-400.0,0.00016438,2]
[361307986,1747443048187,-400.0,0.00016438,2]
[361307987,1747443048196,-762.28,0.00016438,2]
[361307988,1747443048205,-400.0,0.00016438,2]
[361307989,1747443048214,-400.0,0.00016438,2]
[361307990,1747443048223,-349.81414816,0.00016438,2]
[361307991,1747443048232,-1040.23,0.00016438,2]
[361307992,1747443048241,-400.0,0.00016438,2]
[361307993,1747443048250,-400.0,0.00016438,2]
[361307994,1747443048259,-400.0,0.00016438,2]
[361307995,1747443048268,-400.0,0.00016438,2]
[361307996,1747443048277,-961.36,0.00016438,2]
[361307997,1747443048286,-400.0,0.00016438,2]
[361307998,1747443048296,-400.0,0.00016438,2]
[361307999,1747443048308,-400.0,0.00016438,2]
[361308000,1747443048317,-867.02,0.00016438,2]
[361308001,1747443048326,-706.0,0.00016438,2]
[361308002,1747443048337,-400.0,0.00016438,2]
[361308003,1747443048346,-769.91,0.00016438,2]
[361308004,1747443048355,-670.62,0.00016438,2]
[361308005,1747443048365,-400.0,0.00016438,2]
[361308006,1747443048374,-157.076941,0.00016438,2]
[361308007,1747443048386,-516.48,0.00016438,2]
[361308008,1747443048395,-400.0,0.00016438,2]
[361308009,1747443048404,-400.0,0.00016438,2]
[361308010,1747443048414,-400.0,0.00016438,2]
[361308011,1747443048423,-400.0,0.00016438,2]
[361308012,1747443048433,-400.0,0.00016438,2]
[361308013,1747443048442,-674.61,0.00016438,2]
[361308014,1747443048452,-400.0,0.00016438,2]
[361308015,1747443048462,-562.25,0.00016438,2]
[361308016,1747443048472,-400.0,0.00016438,2]
[361308017,1747443048481,-649.19,0.00016438,2]
[361308018,1747443048491,-400.0,0.00016438,2]
[361308019,1747443048500,-1273.63,0.00016438,2]
[361308020,1747443048510,-150.0,0.00016438,2]
[361308021,1747443048519,-400.0,0.00016438,2]
[361308022,1747443048529,-400.0,0.00016438,2]
[361308023,1747443048538,-400.0,0.00016438,2]
[361308024,1747443048548,-639.52518329,0.00016438,2]
[361308025,1747443048798,1000.0,0.00042585,30]
[361308026,1747443049006,-245.80481671,0.00016438,2]
[361308027,1747443049015,-503.91927632,0.00016438,2]
[361308028,1747443049024,-577.61,0.00016438,2]
[361308029,1747443049035,-1007.56708927,0.00016438,2]
[361308030,1747443049051,-668.10291073,0.00016438,2]
[361308031,1747443049060,-571.75192386,0.00016438,2]
[361308032,1747443049090,-148.07807614,0.00016438,2]
[361308033,1747443049099,-475.87411386,0.00016438,2]
[361308034,1747443049111,-501.06588614,0.00016438,2]
[361308035,1747443049120,-86.13411186,0.00016438,2]
[361308036,1747443049132,-313.86588814,0.00016438,2]
[361308037,1747443049141,-400.0,0.00016438,2]
[361308038,1747443049151,-1106.48,0.00016438,2]
[361308039,1747443049160,-410.98,0.00016438,2]
[361308040,1747443049169,-400.0,0.00016438,2]
[361308041,1747443049179,-400.0,0.00016438,2]
[361308042,1747443049188,-400.0,0.00016438,2]
[361308043,1747443049197,-200.13346,0.00016438,2]
[361308044,1747443049207,-151.0,0.00016438,2]
[361308045,1747443049216,-200.13346,0.00016438,2]
[361308046,1747443049226,-151.0,0.00016438,2]
[361308047,1747443049235,-200.13346,0.00016438,2]
[361308048,1747443049244,-235.480826,0.00016438,2]
[361308049,1747443049253,-200.13346,0.00016438,2]
[361308050,1747443049263,-200.13346,0.00016438,2]
[361308051,1747443049272,-200.13346,0.00016438,2]
[361308052,1747443049281,-400.0,0.00016438,2]
[361308053,1747443049290,-200.13346,0.00016438,2]
[361308054,1747443049303,-400.0,0.00016438,2]
[361308055,1747443049313,-200.13346,0.00016438,2]
[361308056,1747443049322,-200.13346,0.00016438,2]
[361308057,1747443049331,-756.71,0.00016438,2]
[361308058,1747443049341,-402.37903253,0.00016438,2]
[361308059,1747443049351,-200.13346,0.00016438,2]
[361308060,1747443049360,-200.13346,0.00016438,2]
[361308061,1747443049370,-407.4712668,0.00016438,2]
[361308062,1747443049638,-583.54,0.00016438,2]
[361308063,1747443049648,-456.0,0.00016438,2]
[361308064,1747443049657,-200.13346,0.00016438,2]
[361308065,1747443049666,-400.0,0.00016438,2]
[361308066,1747443049675,-485.28,0.00016438,2]
[361308067,1747443049684,-200.13346,0.00016438,2]
[361308068,1747443049695,-151.0,0.00016438,2]
[361308069,1747443049705,-200.13346,0.00016438,2]
[361308070,1747443049715,-200.13346,0.00016438,2]
[361308071,1747443049726,-200.13346,0.00016438,2]
[361308072,1747443049737,-200.13346,0.00016438,2]
[361308073,1747443049747,-151.0,0.00016438,2]
[361308074,1747443049756,-200.13346,0.00016438,2]
[361308075,1747443049765,-412.125254,0.00016438,2]
[361308076,1747443049774,-200.13346,0.00016438,2]
[361308077,1747443049785,-716.48,0.00016438,2]
[361308078,1747443049795,-200.133468,0.00016438,2]
[361308079,1747443049806,-412.125254,0.00016438,2]
[361308080,1747443049817,-412.125254,0.00016438,2]
[361308081,1747443049827,-400.0,0.00016438,2]
[361308082,1747443049838,-69.43056146,0.00016438,2]
[361308083,1747443049861,-342.69469254,0.00016438,2]
[361308084,1747443049871,-412.125254,0.00016438,2]
[361308085,1747443049882,-412.125254,0.00016438,2]
[361308086,1747443049891,-14.55669248,0.00016438,2]
[361308087,1747443049905,-397.56856152,0.00016438,2]
[361308088,1747443049914,-86.24596494,0.00016438,2]
[361308089,1747443049934,-325.87928906,0.00016438,2]
[361308090,1747443049943,-412.125254,0.00016438,2]
[361308091,1747443049953,-438.41,0.00016438,2]
[361308092,1747443049963,-412.125254,0.00016438,2]
[361308093,1747443049974,-412.125254,0.00016438,2]
[361308094,1747443049983,-412.125254,0.00016438,2]
[361308095,1747443049992,-412.125254,0.00016438,2]
[361308096,1747443050002,-47.21710028,0.00016438,2]
[361308097,1747443050014,-538.32289972,0.00016438,2]
[361308098,1747443050023,-412.125254,0.00016438,2]
[361308099,1747443050032,-744.97,0.00016438,2]
[361308100,1747443050041,-412.125254,0.00016438,2]
[361308101,1747443050051,-871.06,0.00016438,2]
[361308102,1747443050060,-400.0,0.00016438,2]
[361308103,1747443050070,-412.125254,0.00016438,2]
[361308104,1747443050079,-412.125254,0.00016438,2]
[361308105,1747443050088,-412.125254,0.00016438,2]
[361308106,1747443050098,-400.0,0.00016438,2]
[361308107,1747443050107,-145.02083028,0.00016438,2]
[361308108,1747443050119,-267.10442372,0.00016438,2]
[361308109,1747443050130,-412.125264,0.00016438,2]
[361308110,1747443050140,-400.0,0.00016438,2]
[361308111,1747443050149,-71.32030228,0.00016438,2]
[361308112,1747443062873,1000.0,0.00042585,30]
[361308113,1747443076948,2000.0,0.00042585,30]
[361308114,1747443083725,2000.0,0.00042585,30]
[361308115,1747443115308,1417.0,0.00042585,30]
[361308116,1747443128096,200.0,0.00042585,30]
[361308117,1747443128295,200.0,0.00042585,30]
[361308118,1747443242575,6385.52451,0.00042586,120]
[361308119,1747443296360,229751.54412162,0.00042586,30]
[361308120,1747443504360,7990.32168675,0.00042586,120]
[361308121,1747443525524,15587.83014,0.00042586,120]
[361308122,1747443602977,11555.344373,0.00042586,120]
[361308123,1747443737269,4419.7029231,0.00042586,120]
[361308124,1747443807063,5026.13441979,0.00042586,120]
[361308125,1747443818555,1291.66586,0.00042586,120]
[361308126,1747443838575,2870.94304087,0.00042586,120]
[361308127,1747443982810,8495.71749746,0.00042586,30]
[361308128,1747444035116,-200.1553505,0.00012,2]
[361308129,1747444104052,450.0,0.0001,2]
[361308130,1747444148197,-721.8446495,0.00012,2]
[361308131,1747444148219,-500.0,0.00012,2]
[361308132,1747444148240,-200.0,0.000132,2]
[361308133,1747444148262,-250.0,0.000132,2]
[361308134,1747444148284,-658.27,0.00013498,2]
[361308135,1747444148305,-374.4,0.00013699,2]
[361308136,1747444148328,-550.0,0.00014,2]
[361308137,1747444148349,-408.9,0.00014888,2]
[361308138,1747444148370,-1200.0,0.00014983,2]
[361308139,1747444148395,-23308.80502663,0.00014984,2]
[361308140,1747444152089,-250.0,0.00014805,2]
[361308141,1747444152109,-591.19497337,0.00014984,2]
[361308142,1747444152129,-879.84420186,0.00015107,2]
[361308143,1747444157105,-120.15579814,0.00015107,2]
[361308144,1747444157127,-143.55953515,0.00015216,2]
[361308145,1747444174108,-835.84,0.00014959,2]
[361308146,1747444174131,-835.84,0.00014963,2]
[361308147,1747444174152,-835.84,0.00014967,2]
[361308148,1747444174174,-835.84,0.00014971,2]
[361308149,1747444174195,-835.84,0.00014975,2]
[361308150,1747444174217,-835.84,0.00014979,2]
[361308151,1747444174240,-835.84,0.00014983,2]
[361308152,1747444174262,-835.84,0.00014987,2]
[361308153,1747444174284,-835.84,0.00014991,2]
[361308154,1747444174305,-835.84,0.00014995,2]
[361308155,1747444174327,-835.84,0.00014999,2]
[361308156,1747444174351,-835.84,0.00015003,2]
[361308157,1747444174374,-835.84,0.00015007,2]
[361308158,1747444174395,-835.84,0.0001501,2]
[361308159,1747444174416,-835.84,0.00015014,2]
[361308160,1747444174437,-835.84,0.00015018,2]
[361308161,1747444174459,-835.84,0.00015022,2]
[361308162,1747444174480,-835.84,0.00015026,2]
[361308163,1747444174500,-835.84,0.0001503,2]
[361308164,1747444174522,-429.74388585,0.00015034,2]
[361308172,1747444231580,-150.0,0.00014916,7]
[361308173,1747444231590,-200.0,0.0001492,2]
[361308174,1747444231600,-213.0016443,0.0001492,2]
[361308175,1747444231613,-36.9983557,0.0001492,2]
[361308176,1747444231621,-200.0,0.00014924,2]
[361308177,1747444231631,-406.09611415,0.00015034,2]
[361308178,1747444231641,-28.04046485,0.00015216,2]
[361308179,1747444231650,-1473.8850673,0.0001529,2]
[361308181,1747444231666,-26.1149327,0.0001529,2]
[361308182,1747444231676,-427.08,0.0001529,2]
[361308184,1747444231686,-170.37,0.00015428,2]
[361308186,1747444231695,-200.0,0.00015437,2]
[361308187,1747444231704,-114.67478785,0.00015458,2]
[361308188,1747444231715,-452.83521215,0.00015458,2]
[361308189,1747444231724,-300.0,0.00015481,2]
[361308190,1747444231733,-1200.0,0.00015481,2]
[361308191,1747444231742,-300.0,0.00015481,2]
[361308192,1747444231751,-814.75,0.00015482,2]
[361308193,1747444231760,-5858.5800869,0.00015482,2]
[361308194,1747444231771,-519.20423304,0.00015482,2]
[361308195,1747444231785,-3091.8,0.00015482,2]
[361308196,1747444231805,-530.40568006,0.00015482,2]
[361308197,1747444231815,-1404.1,0.00015482,2]
[361308198,1747444231824,-299.99,0.00015482,2]
[361308199,1747444231834,-260.64,0.00015482,2]
[361308200,1747444231843,-2073.9276,0.00015514,2]
[361308201,1747444231854,-800.0,0.000156,5]
[361308202,1747444231863,-325.26,0.000156,2]
[361308203,1747444231872,-150.0,0.000156,2]
[361308204,1747444231882,-352.94,0.000156,2]
[361308206,1747444231891,-364.11947693,0.00015612,2]
[361308207,1747444231900,-300.0,0.00015612,2]
[361308209,1747444231909,-1322.21,0.00015614,2]
[361308211,1747444231919,-4165.04,0.00015614,2]
[361308212,1747444231927,-150.99,0.00015614,2]
[361308214,1747444231937,-916.86883291,0.00015614,2]
[361308215,1747444231948,-83.12116709,0.00015614,2]
[361308216,1747444231957,-334.2,0.00015614,2]
[361308217,1747444231967,-158.0879739,0.00015614,2]
[361308218,1747444231981,-291.26119028,0.00015614,2]
[361308219,1747444231992,-1260.23074267,0.00015614,2]
[361308220,1747444232018,-8986.76407439,0.00015614,2]
[361308221,1747444232029,-487.56775065,0.00015614,2]
[361308229,1747444237351,-500.0,0.00015613,2]
[361308230,1747444237361,-500.0,0.00015613,2]
[361308231,1747444237370,-35.0604836,0.00015613,2]
[361308232,1747444237518,-464.9395164,0.00015613,2]
[361308233,1747444237527,-360.53791438,0.00015613,2]
[361308234,1747444237571,-139.46208562,0.00015613,2]
[361308235,1747444237581,-500.0,0.00015613,2]
[361308236,1747444237590,-500.0,0.00015613,2]
[361308237,1747444237599,-500.0,0.00015613,2]
[361308238,1747444237608,-500.0,0.00015613,2]
[361308239,1747444237617,-500.0,0.00015613,2]
[361308240,1747444237626,-500.0,0.00015613,2]
[361308241,1747444237635,-500.0,0.00015613,2]
[361308242,1747444237645,-500.0,0.00015613,2]
[361308243,1747444237654,-500.0,0.00015613,2]
[361308244,1747444237663,-500.0,0.00015613,2]
[361308245,1747444237673,-500.0,0.00015613,2]
[361308246,1747444237682,-500.0,0.00015613,2]
[361308247,1747444237692,-500.0,0.00015613,2]
[361308248,1747444237701,-564.750867,0.00015613,2]
[361308249,1747444237710,-500.0,0.00015613,2]
[361308250,1747444237719,-500.0,0.00015613,2]
[361308251,1747444237728,-500.0,0.00015613,2]
[361308252,1747444237738,-500.0,0.00015613,2]
[361308253,1747444237747,-500.0,0.00015613,2]
[361308254,1747444237756,-500.0,0.00015613,2]
[361308255,1747444237766,-500.0,0.00015613,2]
[361308256,1747444237776,-500.0,0.00015613,2]
[361308257,1747444237787,-500.0,0.00015613,2]
[361308258,1747444237797,-500.0,0.00015613,2]
[361308259,1747444237806,-500.0,0.00015613,2]
[361308260,1747444237816,-500.0,0.00015613,2]
[361308262,1747444237826,-500.0,0.00015613,2]
[361308263,1747444237835,-500.0,0.00015613,2]
[361308265,1747444237845,-500.0,0.00015613,2]
[361308267,1747444237854,-500.0,0.00015613,2]
[361308269,1747444237866,-500.0,0.00015613,2]
[361308271,1747444237876,-500.0,0.00015613,2]
[361308273,1747444237886,-500.0,0.00015613,2]
[361308275,1747444237896,-500.0,0.00015613,2]
[361308277,1747444237906,-500.0,0.00015613,2]
[361308279,1747444237916,-500.0,0.00015613,2]
[361308281,1747444237926,-500.0,0.00015613,2]
[361308283,1747444237936,-500.0,0.00015613,2]
[361308284,1747444237946,-500.0,0.00015613,2]
[361308285,1747444237956,-500.0,0.00015613,2]
[361308286,1747444237966,-500.0,0.00015613,2]
[361308287,1747444237975,-500.0,0.00015613,2]
[361308288,1747444237986,-500.0,0.00015613,2]
[361308289,1747444237996,-500.0,0.00015613,2]
[361308290,1747444238006,-500.0,0.00015613,2]
[361308291,1747444238015,-500.0,0.00015613,2]
[361308292,1747444238025,-500.0,0.00015613,2]
[361308293,1747444238034,-500.0,0.00015613,2]
[361308294,1747444238043,-500.0,0.00015613,2]
[361308295,1747444238052,-500.0,0.00015613,2]
[361308296,1747444238062,-500.0,0.00015613,2]
[361308297,1747444238071,-500.0,0.00015613,2]
[361308298,1747444238082,-500.0,0.00015613,2]
[361308299,1747444238092,-500.0,0.00015613,2]
[361308300,1747444238102,-500.0,0.00015613,2]
[361308301,1747444238112,-500.0,0.00015613,2]
[361308302,1747444238122,-500.0,0.00015613,2]
[361308303,1747444238131,-500.0,0.00015613,2]
[361308304,1747444238141,-500.0,0.00015613,2]
[361308305,1747444238151,-500.0,0.00015613,2]
[361308306,1747444238160,-500.0,0.00015613,2]
[361308307,1747444238169,-500.0,0.00015613,2]
[361308308,1747444238179,-500.0,0.00015613,2]
[361308309,1747444238189,-500.0,0.00015613,2]
[361308310,1747444238198,-500.0,0.00015613,2]
[361308311,1747444238209,-389.44475867,0.00015613,2]
[361308312,1747444238222,-500.0,0.00015613,2]
[361308313,1747444238233,-500.0,0.00015613,2]
[361308314,1747444238242,-38852.70826811,0.00015614,2]
[361308315,1747444238251,-9999.99,0.00015614,2]
[361308316,1747444238261,-3796.13,0.00015614,2]
[361308317,1747444238270,-499.99,0.00015614,2]
[361308318,1747444238280,-150.99,0.00015614,2]
[361308319,1747444238290,-167.1200032,0.0001562,2]
[361308320,1747444238302,-5821.30624489,0.00015633,2]
[361308321,1747444238311,-165.8,0.00015672,2]
[361308322,1747444238320,-1600.0,0.000157,5]
[361308323,1747444238330,-1017.55,0.000157,2]
[361308324,1747444238340,-232.0,0.00015758,2]
[361308325,1747444238350,-658.27,0.00015762,2]
[361308326,1747444238360,-5821.30624484,0.00015785,2]
[361308327,1747444238371,-2400.0,0.000158,5]
[361308328,1747444238381,-1017.55,0.000158,2]
[361308329,1747444238391,-150.22,0.0001589,2]
[361308330,1747444238400,-300.4,0.0001589,2]
[361308331,1747444238410,-150.22,0.0001589,2]
[361308332,1747444238420,-150.22,0.0001589,2]
[361308333,1747444238430,-150.22,0.0001589,2]
[361308334,1747444238441,-299.68,0.0001589,2]
[361308335,1747444238451,-1017.55,0.000159,2]
[361308336,1747444238460,-3200.0,0.000159,5]
[361308337,1747444238470,-452.29252229,0.000159,2]
[361308338,1747444238479,-5821.30624484,0.00015936,2]
[361308339,1747444238489,-600.0,0.00016,2]
[361308340,1747444238501,-1017.55,0.00016,2]
[361308341,1747444238512,-1017.55,0.00016,2]
[361308342,1747444238522,-5821.30624484,0.00016088,2]
[361308343,1747444238532,-452.2925221,0.00016141,2]
[361308344,1747444238541,-864.05076374,0.00016188,2]
[361308345,1747444238550,-5821.30624484,0.0001624,2]
[361308346,1747444238560,-150.0,0.00016264,2]
[361308347,1747444238570,-7919.77314558,0.00016335,2]
[361308348,1747444238584,-303.70374286,0.00016335,2]
[361308357,1747444239370,-1150.99968823,0.00016335,2]
[361308364,1747444239426,-2587.90000003,0.00016335,2]
[361308366,1747444239438,-1402.275,0.00016335,2]
[361308378,1747444239542,-12696.92594978,0.00016335,2]
[361308379,1747444239553,-1800.18267352,0.00016335,2]
[361308380,1747444239563,-2500.0,0.00016335,2]
[361308381,1747444239572,-329.35120767,0.00016337,2]
[361308382,1747444239581,-224.149148,0.00016337,2]
[361308383,1747444239590,-194.04373307,0.00016338,2]
[361308384,1747444239599,-1256.452,0.00016338,2]
[361308385,1747444239608,-167.213,0.00016338,2]
[361308386,1747444239616,-193.51196609,0.00016338,2]
[361308387,1747444239625,-597.04058544,0.00016338,2]
[361308388,1747444239635,-185.1364,0.00016338,2]
[361308389,1747444239644,-500.0,0.00016338,2]
[361308390,1747444239653,-19617.6259,0.00016338,2]
[361308391,1747444239663,-452.2925221,0.00016383,2]
[361308392,1747444239672,-5821.30624484,0.00016391,2]
[361308393,1747444239681,-200.0,0.00016408,2]
[361308394,1747444239690,-250.0,0.00016408,2]
[361308395,1747444239700,-188.35714498,0.00016428,2]
[361308396,1747444239709,-6825.0,0.00016432,2]
[361308397,1747444239719,-154.0,0.00016432,2]
[361308398,1747444239729,-838.0,0.00016432,2]
[361308399,1747444239738,-4037.0,0.00016432,2]
[361308400,1747444239747,-1050.66198298,0.00016434,5]
[361308401,1747444239757,-272.6739697,0.00016434,2]
[361308402,1747444239766,-194.85653119,0.00016434,2]
[361308403,1747444239776,-237.16596956,0.00016434,2]
[361308404,1747444239785,-173.50630627,0.00016434,2]
[361308405,1747444239797,-215013.93885718,0.00016435,2]
[361308406,1747444239806,-233.6,0.00016437,2]
[361308407,1747444239815,-13479.4719483,0.00016437,2]
[361308409,1747444239825,-82803.1128802,0.00016437,2]
[361308411,1747444239834,-14554.80043515,0.00016437,2]
[361308412,1747444239866,-31318.8370755,0.00016437,2]
[361308413,1747444239877,-6955.60045995,0.00016437,2]
[361308415,1747444239886,-7185.9191594,0.00016437,2]
[361308416,1747444239896,-16417.5303967,0.00016438,2]
[361308427,1747444242431,-2078.6097193,0.00016438,2]
[361308428,1747444242491,-14148.88803931,0.00016438,2]
[361308429,1747444242598,-1020.92920097,0.00016438,2]
[361308430,1747444242609,-6824.431943,0.00016438,2]
[361308473,1747444245447,-5150.0,0.00016438,2]
[361308474,1747444245471,-5150.0,0.00016438,2]
[361308475,1747444245643,-50061.5457479,0.00016438,2]
[361308480,1747444329731,222.2,0.00042586,30]
[361308481,1747444360639,4321326.66057185,0.00042586,30]
[361308482,1747445128476,2329.58378455,0.00011,2]
[361308483,1747445137067,343.4569145,9e-05,2]
[361308484,1747445137090,2102.92360402,9e-05,2]
[361308485,1747445138238,-303.05783375,0.00013541,2]
[361308486,1747445139099,-364.61216625,0.00013541,2]
[361308487,1747445139120,-200.0,0.0001362,2]
[361308488,1747445139144,-179.03175044,0.00013699,2]
[361308489,1747445155795,570.11709503,6.94e-05,2]
[361308490,1747445155817,2673.04069905,6.94e-05,2]
[361308491,1747445155838,2673.04069905,6.94e-05,2]
[361308492,1747445155860,2673.04069905,6.94e-05,2]
[361308493,1747445155882,1646.9193097,6.94e-05,2]
[361308494,1747445163270,1026.12138935,8e-05,2]
[361308495,1747445163293,2673.04069905,8e-05,2]
[361308496,1747445163317,2673.04069905,8e-05,2]
[361308497,1747445163341,2673.04069905,8e-05,2]
[361308498,1747445163363,2673.04069905,8e-05,2]
[361308499,1747445163391,640.02717696,8e-05,2]
[361308500,1747445244122,-186.20824956,0.00013699,2]
[361308501,1747445244143,-300.0,0.00013999,2]
[361308502,1747445244164,-150.0,0.00013999,2]
[361308503,1747445244186,-6.51122892,0.00014,2]
[361308504,1747445252119,-537.48150113,0.00014,2]
[361308505,1747445275045,2069.05455315,0.0001,2]
[361308506,1747445346533,-259.54,0.00012999,2]
[361308507,1747445346554,-1000.0,0.00013999,2]
[361308508,1747445346574,-300.0,0.00013999,2]
[361308509,1747445346595,-48733.07765284,0.00014,2]
[361308510,1747445346630,-5560.3039342,0.00014,2]
[361308511,1747445346651,-200.0,0.00014351,2]
[361308512,1747445346671,-200.0,0.00014387,2]
[361308513,1747445346691,-200.0,0.00014874,2]
[361308514,1747445346711,-200.0,0.00014895,2]
[361308515,1747445346731,-200.0,0.00014895,2]
[361308516,1747445346753,-407.06326989,0.000149,2]
[361308517,1747445346775,-500.0,0.00014923,2]
[361308518,1747445346799,-500.0,0.00014923,2]
[361308519,1747445346822,-370.49891111,0.00014923,2]
[361308520,1747445346845,-500.0,0.00014923,2]
[361308521,1747445346867,-500.0,0.00014923,2]
[361308522,1747445346891,-500.0,0.00014923,2]
[361308523,1747445346914,-500.0,0.00014923,2]
[361308524,1747445346941,-500.0,0.00014923,2]
[361308525,1747445346964,-500.0,0.00014923,2]
[361308526,1747445346988,-500.0,0.00014923,2]
[361308527,1747445347010,-500.0,0.00014923,2]
[361308528,1747445347033,-156.4750867,0.00014923,2]
[361308529,1747445347055,-500.0,0.00014923,2]
[361308530,1747445347077,-500.0,0.00014923,2]
[361308531,1747445347098,-23900.0,0.00014924,2]
[361308532,1747445347119,-250.0,0.0001503,2]
[361308533,1747445347146,-543.05,0.00015096,2]
[361308534,1747445347174,-407.06326989,0.00015141,2]
[361308535,1747445347196,-290.5,0.00015234,2]
[361308536,1747445347219,-1000.0,0.00015273,2]
[361308538,1747445361075,551.4,0.00015101,2]
[361308539,1747445371406,200.0,0.00015101,2]
[361308541,1747445395710,150.0,0.0001512,7]
[361308552,1747445431631,-171.6,0.00015346,2]
[361308553,1747445431641,-1500.0,0.0001538,2]
[361308554,1747445431650,-200.0,0.00015459,2]
[361308555,1747445431659,-31.94602336,0.0001549,2]
[361308556,1747445431721,-442.91397664,0.0001549,2]
[361308557,1747445431730,-1030.18602336,0.00015507,2]
[361308558,1747445431741,-169.81397664,0.00015507,2]
[361308559,1747445431750,-300.0,0.00015507,2]
[361308560,1747445431759,-189.0,0.00015507,2]
[361308561,1747445431769,-784.03,0.00015508,2]
[361308562,1747445431778,-150.99,0.00015508,2]
[361308563,1747445431787,-6598.97,0.00015508,2]
[361308564,1747445431797,-150.99,0.00015508,2]
[361308565,1747445431807,-262.43,0.00015522,2]
[361308566,1747445431816,-1741.36,0.00015527,2]
[361308567,1747445431825,-1928.3,0.00015527,2]
[361308568,1747445431835,-390.78,0.00015527,2]
[361308569,1747445431844,-1843.39,0.00015527,2]
[361308570,1747445431854,-499.99,0.00015527,2]
[361308571,1747445431863,-299.99,0.00015527,2]
[361308572,1747445431873,-2852.25,0.00015527,2]
[361308573,1747445431883,-161.75,0.00015529,2]
[361308574,1747445431893,-1089.16,0.00015638,2]
[361308575,1747445431903,-457.73,0.00015641,2]
[361308576,1747445431912,-804.53,0.00015641,2]
[361308577,1747445431922,-457.73,0.00015641,2]
[361308578,1747445431931,-210.83,0.00015641,2]
[361308579,1747445431941,-457.73,0.00015641,2]
[361308580,1747445432416,-400.0,0.000157,5]
[361308581,1747445432426,-3470.47841654,0.00015749,2]
[361308582,1747445432436,-800.0,0.000158,5]
[361308583,1747445432446,-667.67,0.00015805,2]
[361308584,1747445432455,-804.53,0.00015841,2]
[361308585,1747445432465,-170.01,0.0001589,2]
[361308586,1747445432475,-150.0,0.0001589,2]
[361308587,1747445432485,-353.05,0.0001589,2]
[361308588,1747445432494,-170.01,0.0001589,2]
[361308589,1747445432504,-150.0,0.0001589,2]
[361308590,1747445432513,-150.0,0.0001589,2]
[361308591,1747445432523,-1157.59,0.0001589,2]
[361308592,1747445432533,-170.01,0.0001589,2]
[361308593,1747445432543,-1178.6,0.0001589,2]
[361308594,1747445432557,-152.39,0.0001589,2]
[361308595,1747445432568,-170.87,0.0001589,2]
[361308596,1747445432578,-1200.0,0.000159,5]
[361308597,1747445432589,-411.32496715,0.000159,2]
[361308598,1747445432599,-170.01,0.00015978,2]
[361308599,1747445432608,-325.36,0.00015978,2]
[361308600,1747445432618,-411.32496696,0.00016107,2]
[361308601,1747445432628,-411.32496696,0.00016314,2]
[361308602,1747445432637,-2703.39592548,0.00016336,2]
[361308603,1747445432647,-606.55613538,0.00016336,2]
[361308604,1747445432657,-194.04373307,0.00016338,2]
[361308605,1747445432666,-165.86739948,0.00016338,2]